fUST/lending_fUST_20240707
["ID","MTS","AMOUNT","RATE_DAILY","PERIOD"]
[331390934,1720327839591,-166.666666,0.00017977,2]
[331390936,1720327839601,-250.0,0.00018293,2]
[331390938,1720327839611,-166.666666,0.00018362,2]
[331390940,1720327839622,-1323.531538,0.00018739,2]
[331390942,1720327839633,-2988.53077347,0.000189,2]
[331390944,1720327839643,-163.283739,0.00019178,2]
[331390946,1720327839653,-287.0,0.00019666,2]
[331390948,1720327839664,-4271.31125949,0.0002,2]
[331390950,1720327839675,-6190.92648464,0.0002,2]
[331390952,1720327839686,-1000.0,0.0002008,10]
[331390954,1720327839700,-394.58389521,0.000203,2]
[331390956,1720327839710,-257.39669921,0.00021,2]
[331390958,1720327839720,-10101.4420426,0.00021,2]
[331390960,1720327839731,-232.06495323,0.00021,2]
[331390962,1720327839742,-750.0,0.00021096,2]
[331390964,1720327839752,-1633.70475094,0.00022,2]
[331390966,1720327839763,-54032.4870561,0.0002224,3]
[331390968,1720327839780,-10852.55129209,0.0002225,2]
[331390969,1720327839799,-1308.09207612,0.000223,2]
[331390970,1720327839816,-879.66892954,0.00022387,2]
[331390971,1720327839833,-238.52406319,0.00023,2]
[331390972,1720327839849,-11350.70043868,0.00023,2]
[331390973,1720327839865,-1000.0,0.00023665,10]
[331390974,1720327839885,-150.0,0.000239,2]
[331390975,1720327839902,-2988.53077347,0.000239,2]
[331390976,1720327839918,-250.0,0.00024448,2]
[331390977,1720327839935,-380.0,0.00024658,2]
[331390978,1720327839952,-1375.91635075,0.000249,2]
[331390979,1720327839968,-1000.0,0.00024989,10]
[331390980,1720327839980,-186.07363022,0.00024989,2]
[331390982,1720327839995,-500.0,0.00024989,2]
[331390985,1720327840013,-427.50640661,0.00024989,2]
[331390987,1720327840029,-54032.4870561,0.0002499,3]
[331390990,1720327840048,-350.0,0.00024996,2]
[331390992,1720327840065,-1000.0,0.00024999,10]
[331390994,1720327840077,-1850.59818205,0.00025,2]
[331390997,1720327840090,-1025.01660227,0.00025,2]
[331390999,1720327840106,-45082.44471615,0.00025,2]
[331391002,1720327840121,-294.69784375,0.00025,2]
[331391004,1720327840136,-1375.91635073,0.0002515,2]
[331391006,1720327840151,-1375.91635073,0.000254,2]
[331391009,1720327840165,-54032.4870561,0.00025491,3]
[331391011,1720327840180,-52119.39254387,0.00025501,2]
[331391014,1720327840196,-450.0,0.00025544,2]
[331391016,1720327840214,-153.0,0.00025589,2]
[331391018,1720327840227,-1375.91635073,0.0002565,2]
[331391021,1720327840243,-695.86827409,0.00025683,2]
[331391023,1720327840256,-2070.70532608,0.00025743,2]
[331391026,1720327840270,-54032.4870561,0.0002588,3]
[331391028,1720327840283,-17299.22536898,0.0002589,3]
[331391030,1720327840298,-1375.91635073,0.000259,2]
[331391033,1720327840310,-1000.0,0.00025989,10]
[331391035,1720327840324,-1000.0,0.00025989,10]
[331391037,1720327840337,-958.61899323,0.00025989,10]
[331391039,1720327840349,-54032.4870561,0.0002599,3]
[331391042,1720327840363,-265135.15334388,0.00026,2]
[331391082,1720327840755,-500.0,0.00024989,2]
[331391084,1720327840770,-500.0,0.00024989,2]
[331391087,1720327840783,-623.0991488,0.00024989,2]
[331391091,1720327840796,-180.72665745,0.00026,2]
[331391164,1720327844149,-8826.84861747,0.00026,2]
[331391165,1720327844161,-643.6185642,0.00026,2]
[331391166,1720327844174,-6653.71869993,0.00026,2]
[331391167,1720327844187,-859.3494344,0.00026,2]
[331391168,1720327844198,-17665.62518973,0.00026,2]
[331391244,1720327847115,-153.0,0.00025589,2]
[331391245,1720327847125,-8389.03118782,0.00026,2]
[331391246,1720327847137,-6092.56590025,0.00026,2]
[331391247,1720327847149,-11727.60856736,0.00026,2]
[331391289,1720328691276,9615.23092531,0.00014998,2]
[331391291,1720328776589,8192.86774796,0.00014998,2]
[331391292,1720328818483,6983.83406729,0.00014998,2]
[331391293,1720328823965,217.6738,0.00014998,2]
[331391299,1720328921662,217.6738,0.00014998,2]
[331391301,1720328926277,1468.80266314,0.00014999,2]
[331391310,1720328980754,6980.13721729,0.00014998,2]
[331391311,1720328992978,4725.62765284,0.00014999,2]
[331391312,1720329023677,217.6738,0.00014999,2]
[331391332,1720329032746,-491.14974063,0.00015995,2]
[331391333,1720329032755,-17247.80566422,0.00016255,2]
[331391334,1720329032764,-13964.28915451,0.00016255,2]
[331391453,1720329041663,-808.92881548,0.00016255,2]
[331391540,1720329084928,161.8500959,0.00014999,2]
[331391541,1720329086627,3138.06906429,0.00014999,2]
[331391548,1720329162899,217.6738,0.00014999,2]
[331391553,1720329265210,217.6738,0.00014999,2]
[331391554,1720329313707,1634.75488436,0.00014999,2]
[331391555,1720329332920,808.08946619,0.00015,2]
[331391556,1720329375689,217.6738,0.00015,2]
[331391560,1720329462875,217.6738,0.00015,2]
[331391562,1720329477692,217.6738,0.00015,2]
[331391563,1720329657833,2834.68657998,0.00015,2]
[331391566,1720329813849,2831.64235514,0.00015,2]
[331391567,1720329883255,4000.0,0.0002,120]
[331391569,1720329976487,5000.0,0.00015001,2]
[331391570,1720330046911,10000.0,0.00015001,2]
[331391571,1720330089534,10000.0,0.00015001,2]
[331391573,1720330103227,10000.0,0.00015001,2]
[331391579,1720330125849,10000.0,0.00015001,2]
[331391582,1720330148037,3088.66857407,0.00014999,2]
[331391622,1720330240406,-491.14974063,0.00015995,2]
[331391624,1720330240418,-150.0,0.00016071,2]
[331391626,1720330240429,-359.91754253,0.00016255,2]
[331391628,1720330240452,-2399.638932,0.00016255,2]
[331391644,1720330242249,-1440.90000001,0.00016255,2]
[331391646,1720330242262,-6672.72138022,0.00016255,2]
[331391767,1720330244985,-665.31624251,0.00016255,2]
[331391768,1720330244998,-1765.29687565,0.00016255,2]
[331391845,1720330247982,-5284.00582292,0.00016255,2]
[331391853,1720330286007,2136.49086891,0.00014999,2]
[331391856,1720330376057,2124.61104539,0.00014999,2]
[331391857,1720330400023,1500.0,0.00014999,2]
[331391858,1720330404938,10000.0,0.00015001,2]
[331391859,1720330416106,10000.0,0.00015001,2]
[331391860,1720330425378,6094.81493025,0.00014998,2]
[331391861,1720330438738,10000.0,0.00015001,2]
[331391862,1720330451521,10000.0,0.00015001,2]
[331391863,1720330468082,-168.49016355,0.00015995,2]
[331391864,1720330468115,-1577.54160267,0.00016255,2]
[331391865,1720330468149,-166.666666,0.0001707,2]
[331391866,1720330468185,-166.666666,0.00017535,2]
[331391867,1720330468219,-192.0,0.00017624,2]
[331391868,1720330468395,-1570.70711887,0.00017625,2]
[331391869,1720330521065,-1579.0,0.00017625,2]
[331391871,1720330556606,-2000.0,0.00017625,2]
[331391874,1720330867574,160.3712617,0.00014999,2]
[331391875,1720330930122,6921.45629991,0.00014999,2]
[331391878,1720330961069,1158.75954311,0.00014999,2]
[331391880,1720330990276,1434.5963251,0.00014999,2]
[331391881,1720330998054,1579.42092311,0.00015,2]
[331391887,1720331099372,1044.87693169,0.00015,2]
[331391889,1720331112045,827.35902986,0.00015,2]
[331391893,1720331148607,2800.00082769,0.00014999,2]
[331391894,1720331174080,1157.85404607,0.00014999,2]
[331391895,1720331216416,1105.2185478,0.00015,2]
[331391901,1720331365329,938.05992733,0.00015,2]
[331391914,1720331434636,-166.666666,0.00016438,2]
[331391916,1720331434645,-166.666666,0.00016835,2]
[331391918,1720331434655,-3489.13855973,0.00016916,2]
[331391921,1720331434666,-7104.79619343,0.00016916,2]
[331392041,1720331439067,-14306.06524684,0.00016916,2]
[331392042,1720331439078,-1016.82160874,0.00017228,2]
[331392043,1720331439088,-166.666666,0.00017231,2]
[331392044,1720331439098,-1000.0,0.00017235,2]
[331392045,1720331439108,-1000.0,0.00017254,2]
[331392046,1720331439118,-1000.0,0.00017289,2]
[331392047,1720331439128,-1000.0,0.00017294,2]
[331392048,1720331439138,-1000.0,0.00017323,2]
[331392050,1720331439148,-1000.0,0.00017345,2]
[331392052,1720331439158,-1000.0,0.00017356,2]
[331392054,1720331439169,-1000.0,0.00017364,2]
[331392056,1720331439180,-1000.0,0.00017376,2]
[331392058,1720331439190,-1000.0,0.0001738,2]
[331392059,1720331439201,-1000.0,0.00017412,2]
[331392060,1720331439211,-1000.0,0.0001745,2]
[331392061,1720331439222,-1000.0,0.00017453,2]
[331392062,1720331439232,-1000.0,0.00017466,2]
[331392063,1720331439242,-166.666666,0.00017628,2]
[331392064,1720331439252,-500.0,0.00017755,2]
[331392065,1720331439262,-661.765769,0.00017827,2]
[331392066,1720331439271,-166.666666,0.00018024,2]
[331392067,1720331439282,-17511.12731013,0.00018183,2]
[331392068,1720331439291,-205.94345184,0.00018266,2]
[331392069,1720331439302,-166.666666,0.00018421,2]
[331392070,1720331439312,-155.23289311,0.00018798,2]
[331392071,1720331439323,-996.17692449,0.000189,2]
[331392072,1720331439333,-197.21976724,0.00019039,2]
[331392073,1720331439344,-245.8313992,0.00019041,2]
[331392074,1720331439354,-162.177174,0.00019178,2]
[331392075,1720331439364,-165.451582,0.00019178,2]
[331392076,1720331439374,-163.283739,0.00019922,2]
[331392077,1720331439383,-154.74467129,0.0002,2]
[331392078,1720331439394,-6591.93025245,0.0002,2]
[331392079,1720331439405,-428.07800494,0.0002,2]
[331392080,1720331439415,-763.48993106,0.0002,2]
[331392081,1720331439425,-225.62340528,0.0002,2]
[331392082,1720331439436,-4174.40467449,0.0002,2]
[331392083,1720331439447,-154.92132218,0.0002,2]
[331392084,1720331439457,-287.6696459,0.0002,2]
[331392085,1720331439467,-373.7955816,0.0002,2]
[331392086,1720331439478,-154.76012181,0.0002,2]
[331392087,1720331439489,-623.79341371,0.00021,2]
[331392088,1720331439500,-750.0,0.00021096,2]
[331392089,1720331439511,-1117.35505048,0.00021917,2]
[331392090,1720331439522,-293.29664643,0.00021917,2]
[331392091,1720331439532,-215.10199221,0.00022,2]
[331392092,1720331439542,-620.18967069,0.0002205,2]
[331392093,1720331439552,-879.66892954,0.00022238,2]
[331392094,1720331439561,-150.0,0.000228,2]
[331392095,1720331439570,-3970.43161859,0.00022941,2]
[331392096,1720331439581,-153.0,0.00023123,2]
[331392097,1720331439592,-153.0,0.00023123,2]
[331392098,1720331439603,-153.0,0.00023134,2]
[331392099,1720331439613,-620.00948353,0.00023153,2]
[331392100,1720331439623,-171.21572919,0.00023348,2]
[331392101,1720331439634,-996.17692449,0.000239,2]
[331392102,1720331439644,-620.00047418,0.0002431,2]
[331392103,1720331439654,-150.558,0.00024587,2]
[331392104,1720331439664,-1405.0,0.00024587,2]
[331392105,1720331439675,-307.2452266,0.00024904,2]
[331392106,1720331439684,-153.0,0.00025178,2]
[331392107,1720331439695,-620.00000005,0.00025463,2]
[331392108,1720331439705,-2250.05,0.00025471,3]
[331392109,1720331439715,-378.78,0.00025471,3]
[331392110,1720331439725,-153.0,0.00025479,2]
[331392111,1720331439734,-75928.4606534,0.00025481,3]
[331392112,1720331439744,-37964.2303267,0.00025491,3]
[331392113,1720331439755,-191.076681,0.00025501,7]
[331392114,1720331439764,-151.0,0.00025501,7]
[331392115,1720331439774,-191.076681,0.00025501,7]
[331392116,1720331439784,-151.0,0.00025501,7]
[331392117,1720331439794,-151.0,0.00025501,7]
[331392118,1720331439804,-151.0,0.00025501,7]
[331392119,1720331439814,-154.593081,0.00025501,7]
[331392120,1720331439824,-151.805337,0.00025501,7]
[331392121,1720331439834,-312.433797,0.00025501,7]
[331392122,1720331439844,-312.433797,0.00025501,7]
[331392123,1720331439854,-154.194009,0.00025501,7]
[331392124,1720331439863,-151.0,0.00025501,7]
[331392125,1720331439873,-30000.0,0.00025501,2]
[331392126,1720331439887,-52119.39254387,0.00025501,2]
[331392127,1720331439897,-620.00002371,0.00025526,2]
[331392128,1720331439907,-500.0,0.00025879,2]
[331392129,1720331439917,-397.50274569,0.00025879,2]
[331392130,1720331439927,-638.85223891,0.00025879,2]
[331392131,1720331439936,-500.0,0.00025879,2]
[331392132,1720331439946,-151.0,0.0002588,7]
[331392133,1720331439956,-151.632729,0.0002588,7]
[331392134,1720331439966,-151.0,0.0002588,7]
[331392135,1720331439976,-37964.2303267,0.0002588,3]
[331392136,1720331439986,-312.433797,0.0002589,7]
[331392137,1720331439995,-312.433797,0.0002589,7]
[331392138,1720331440005,-168.08001,0.0002589,7]
[331392139,1720331440168,-11922.15464398,0.0002589,3]
[331392140,1720331440183,-126.84535602,0.0002589,3]
[331392141,1720331440192,-191.076681,0.0002598,7]
[331392142,1720331440202,-191.076681,0.0002598,7]
[331392143,1720331440212,-151.0,0.0002598,7]
[331392144,1720331440221,-151.0,0.0002598,7]
[331392145,1720331440230,-312.433797,0.0002598,7]
[331392146,1720331440240,-312.433797,0.0002598,7]
[331392147,1720331440249,-44429.3964038,0.0002598,3]
[331392160,1720331444276,-879.66892954,0.00022236,2]
[331392161,1720331444285,-151.0,0.00025501,7]
[331392162,1720331444295,-158.225179,0.00025501,7]
[331392163,1720331444304,-151.0,0.0002589,7]
[331392164,1720331444313,-151.0,0.0002598,7]
[331392165,1720331444323,-7169.69485515,0.0002598,3]
[331392192,1720331446740,-293.29664643,0.00021095,2]
[331392193,1720331446750,-1206.70335357,0.0002598,3]
[331392354,1720332638842,-548.264223,0.00018466,2]
[331392359,1720332638852,-166.666666,0.00018504,2]
[331392363,1720332638862,-300.0,0.00018874,2]
[331392366,1720332638872,-300.0,0.00018874,2]
[331392368,1720332638882,-24900.0,0.00018875,2]
[331392372,1720332638895,-166.666666,0.00019009,2]
[331392375,1720332638905,-164.87114,0.00019178,2]
[331392378,1720332638915,-166.666666,0.00019513,2]
[331392380,1720332638925,-998.00399202,0.00019799,2]
[331392382,1720332638934,-1000.0,0.00019799,10]
[331392384,1720332638944,-52119.39254387,0.000198,2]
[331392386,1720332638954,-1969.47271307,0.000199,2]
[331392388,1720332638964,-293.29664643,0.0002,2]
[331392390,1720332638973,-1117.35505048,0.0002,2]
[331392392,1720332638983,-225.62340528,0.0002,2]
[331392394,1720332638993,-373.7955816,0.0002,2]
[331392395,1720332639003,-166.666666,0.00020018,2]
[331392396,1720332639012,-166.666666,0.00020522,2]
[331392397,1720332639022,-163.283739,0.00020554,2]
[331392398,1720332639033,-420.0,0.00020575,2]
[331392400,1720332639042,-625.91156364,0.00020732,2]
[331392401,1720332639053,-420.0,0.00020761,2]
[331392402,1720332639063,-166.666666,0.00021027,2]
[331392403,1720332639073,-750.0,0.00021096,2]
[331392404,1720332639083,-620.29557818,0.00021768,2]
[331392405,1720332639092,-11235.03599607,0.00022,2]
[331392406,1720332639103,-378.78,0.0002216,3]
[331392407,1720332639113,-879.66892954,0.0002217,2]
[331392408,1720332639123,-154.69833824,0.0002243,2]
[331392409,1720332639134,-587.0,0.0002243,2]
[331392410,1720332639145,-53329.3311648,0.00022827,3]
[331392411,1720332639155,-587.0,0.00022837,2]
[331392412,1720332639166,-1000.0,0.00022851,10]
[331392413,1720332639176,-620.01477891,0.00022857,2]
[331392414,1720332639187,-149.80905278,0.00022889,2]
[331392415,1720332639198,-250.34676675,0.00022913,2]
[331392416,1720332639209,-232.35145129,0.00022931,2]
[331392417,1720332639219,-3970.43161859,0.00022941,2]
[331392418,1720332639230,-435.0,0.00022943,2]
[331392419,1720332639241,-313.357042,0.00022992,7]
[331392420,1720332639251,-313.357042,0.00022992,7]
[331392421,1720332639261,-163.007398,0.00022992,7]
[331392422,1720332639271,-53329.3311648,0.00022992,3]
[331392423,1720332639282,-1000.0,0.00023031,10]
[331392424,1720332639294,-304.110719,0.00023032,7]
[331392425,1720332639305,-151.0,0.00023032,7]
[331392426,1720332639315,-151.0,0.00023032,7]
[331392427,1720332639327,-304.110719,0.00023032,7]
[331392428,1720332639336,-151.0,0.00023032,7]
[331392429,1720332639347,-151.0,0.00023032,7]
[331392430,1720332639356,-162.983042,0.00023032,7]
[331392431,1720332639368,-151.0,0.00023032,7]
[331392432,1720332639379,-156.924223,0.00023032,7]
[331392433,1720332639388,-152.711838,0.00023032,7]
[331392434,1720332639398,-151.50933,0.00023032,7]
[331392435,1720332639408,-151.805337,0.00023032,7]
[331392436,1720332639417,-151.0,0.00023032,7]
[331392437,1720332639427,-151.0,0.00023032,7]
[331392438,1720332639437,-154.194009,0.00023032,7]
[331392439,1720332639446,-151.0,0.00023032,7]
[331392440,1720332639458,-151.0,0.00023032,7]
[331392441,1720332639467,-151.632729,0.00023032,7]
[331392442,1720332639477,-218.217376,0.00023032,7]
[331392443,1720332639487,-241.770505,0.00023032,7]
[331392444,1720332639496,-218.217376,0.00023032,7]
[331392445,1720332639506,-241.770505,0.00023032,7]
[331392446,1720332639516,-151.0,0.00023032,7]
[331392447,1720332639526,-151.0,0.00023032,7]
[331392448,1720332639536,-151.0,0.00023032,7]
[331392449,1720332639546,-151.0,0.00023032,7]
[331392450,1720332639556,-170.714717,0.00023032,7]
[331392451,1720332639566,-154.593081,0.00023032,7]
[331392452,1720332639576,-151.0,0.00023032,7]
[331392453,1720332639586,-151.0,0.00023032,7]
[331392454,1720332639596,-151.0,0.00023032,7]
[331392455,1720332639606,-151.0,0.00023032,7]
[331392456,1720332639616,-151.0,0.00023032,7]
[331392457,1720332639626,-313.357042,0.00023032,7]
[331392458,1720332639636,-151.0,0.00023032,7]
[331392459,1720332639646,-313.357042,0.00023032,7]
[331392460,1720332639656,-150.0,0.0002315,2]
[331392461,1720332639665,-190.47050284,0.00023453,2]
[331392462,1720332639675,-1969.47271307,0.00023579,2]
[331392463,1720332639684,-232.35145125,0.00023671,2]
[331392464,1720332639694,-250.0,0.00023698,2]
[331392465,1720332639704,-313.357042,0.00023722,7]
[331392466,1720332639714,-313.357042,0.00023722,7]
[331392467,1720332639724,-53329.3311648,0.00023723,3]
[331392468,1720332639734,-150.0,0.00023783,2]
[331392469,1720332639744,-5501.213675,0.0002388,2]
[331392470,1720332639754,-620.00073895,0.00024,2]
[331392471,1720332639764,-350.0,0.00024246,2]
[331392473,1720332639775,-241.89133334,0.00024331,2]
[331392475,1720332639785,-232.35145125,0.0002441,2]
[331392477,1720332639794,-535.0,0.00024451,2]
[331392479,1720332639804,-380.0,0.00024658,2]
[331392480,1720332639813,-573.47253022,0.00024794,2]
[331392482,1720332639823,-150.0,0.00024967,2]
[331392484,1720332639833,-365.89024443,0.00024979,2]
[331392486,1720332639842,-408.97966995,0.00024979,2]
[331392487,1720332639853,-313.357042,0.0002498,7]
[331392488,1720332639863,-313.357042,0.0002498,7]
[331392489,1720332639872,-53329.3311648,0.0002498,3]
[331392490,1720332639882,-151.0,0.0002499,7]
[331392491,1720332639893,-218.217376,0.0002499,7]
[331392492,1720332639903,-241.770505,0.0002499,7]
[331392493,1720332639913,-218.217376,0.0002499,7]
[331392494,1720332639924,-241.770505,0.0002499,7]
[331392495,1720332639933,-151.0,0.0002499,7]
[331392496,1720332639944,-151.0,0.0002499,7]
[331392497,1720332639954,-151.0,0.0002499,7]
[331392498,1720332639964,-151.0,0.0002499,7]
[331392499,1720332639974,-151.0,0.0002499,7]
[331392500,1720332639983,-151.0,0.0002499,7]
[331392501,1720332639992,-151.0,0.0002499,7]
[331392502,1720332640002,-151.0,0.0002499,7]
[331392503,1720332640011,-151.0,0.0002499,7]
[331392504,1720332640021,-151.0,0.0002499,7]
[331392505,1720332640031,-1000.0,0.00025,2]
[331392506,1720332640040,-1000.0,0.00025,2]
[331392507,1720332640050,-1000.0,0.00025,2]
[331392508,1720332640059,-1000.0,0.00025,2]
[331392509,1720332640069,-205.08978328,0.00025,2]
[331392510,1720332640079,-190.58027952,0.00025,2]
[331392511,1720332640089,-150.41372044,0.000251,2]
[331392512,1720332640098,-208.45254163,0.000251,2]
[331392513,1720332640108,-823.0,0.00025121,2]
[331392514,1720332640117,-232.35145125,0.0002515,2]
[331392515,1720332640127,-154.69833824,0.00025166,2]
[331392516,1720332640137,-620.00003695,0.000252,2]
[331392517,1720332640147,-151.0,0.00025412,7]
[331392518,1720332640156,-290.854262,0.00025412,7]
[331392519,1720332640166,-160.696,0.00025412,2]
[331392520,1720332640176,-158.246,0.00025412,2]
[331392521,1720332640186,-154.611,0.00025412,2]
[331392522,1720332640196,-351.0,0.00025412,2]
[331392523,1720332640207,-1405.0,0.00025412,2]
[331392524,1720332640217,-154.99462274,0.000255,2]
[331392527,1720332640226,-1000.0,0.000255,2]
[331392529,1720332640238,-191.03593632,0.00025501,2]
[331392531,1720332640248,-197.21976724,0.00025501,2]
[331392533,1720332640257,-154.96442838,0.00025501,2]
[331392534,1720332640267,-160.52658988,0.00025515,2]
[331392536,1720332640277,-301.73004355,0.00025744,2]
[331392538,1720332640286,-11922.15464398,0.000258,3]
[331392540,1720332640302,-151.0,0.000258,7]
[331392542,1720332640311,-151.0,0.000258,7]
[331392544,1720332640321,-151.0,0.000258,7]
[331392545,1720332640330,-151.0,0.000258,7]
[331392546,1720332640342,-151.0,0.000258,7]
[331392547,1720332640352,-313.357042,0.000258,7]
[331392548,1720332640362,-151.0,0.000258,7]
[331392549,1720332640374,-313.357042,0.000258,7]
[331392550,1720332640386,-313.357042,0.00025879,7]
[331392551,1720332640395,-313.357042,0.00025879,7]
[331392552,1720332640405,-53329.3311648,0.00025879,3]
[331392553,1720332640415,-313.357042,0.0002588,7]
[331392554,1720332640425,-313.357042,0.0002588,7]
[331392555,1720332640435,-53329.3311648,0.0002588,3]
[331392556,1720332640445,-232.35145125,0.00025889,2]
[331392557,1720332640454,-151.0,0.0002589,7]
[331392558,1720332640466,-151.0,0.0002589,7]
[331392559,1720332640476,-218.217376,0.0002589,7]
[331392560,1720332640486,-218.217376,0.0002589,7]
[331392561,1720332640495,-241.770505,0.0002589,7]
[331392562,1720332640505,-241.770505,0.0002589,7]
[331392563,1720332640515,-218.217376,0.0002589,7]
[331392564,1720332640525,-218.217376,0.0002589,7]
[331392565,1720332640534,-241.770505,0.0002589,7]
[331392566,1720332640544,-168.08001,0.0002589,7]
[331392567,1720332640553,-241.770505,0.0002589,7]
[331392568,1720332640563,-151.0,0.0002589,7]
[331392569,1720332640573,-151.0,0.0002589,7]
[331392570,1720332640583,-151.0,0.0002589,7]
[331392571,1720332640592,-153.006728,0.0002589,7]
[331392572,1720332640602,-151.0,0.0002589,7]
[331392573,1720332640611,-151.0,0.0002589,7]
[331392574,1720332640621,-151.0,0.0002589,7]
[331392575,1720332640630,-151.0,0.0002589,7]
[331392576,1720332640639,-151.0,0.0002589,7]
[331392577,1720332640649,-151.0,0.0002589,7]
[331392578,1720332640658,-151.0,0.0002589,7]
[331392579,1720332640667,-218.921053,0.0002589,7]
[331392580,1720332640676,-1000.0,0.00025899,10]
[331392581,1720332640686,-1000.0,0.00025899,10]
[331392582,1720332640695,-151.0,0.000259,7]
[331392583,1720332640704,-151.0,0.000259,7]
[331392584,1720332640718,-151.0,0.000259,7]
[331392585,1720332640727,-373.0,0.000259,2]
[331392586,1720332640738,-218.217376,0.000259,7]
[331392587,1720332640748,-218.217376,0.000259,7]
[331392588,1720332640757,-241.770505,0.000259,7]
[331392589,1720332640766,-241.770505,0.000259,7]
[331392590,1720332640776,-151.0,0.000259,7]
[331392591,1720332640785,-151.0,0.000259,7]
[331392592,1720332640794,-287.6696459,0.00025928,2]
[331392593,1720332640804,-151.0,0.0002597,7]
[331392594,1720332640813,-1000.0,0.00025979,10]
[331392595,1720332640823,-259.51302029,0.0002598,2]
[331392596,1720332640832,-239.70701363,0.0002598,2]
[331392597,1720332640842,-189.12210345,0.0002598,2]
[331392598,1720332640851,-763.48993106,0.0002598,2]
[331392599,1720332640861,-152.906873,0.0002598,7]
[331392600,1720332640871,-428.07800494,0.0002598,2]
[331392601,1720332640880,-4174.40467449,0.0002598,2]
[331392602,1720332640890,-193.40528129,0.0002598,2]
[331392603,1720332640900,-10276.35107581,0.0002598,7]
[331392604,1720332640909,-246.502,0.0002598,2]
[331392605,1720332640919,-518.19644654,0.0002598,3]
[331392606,1720332640928,-151.0,0.0002598,7]
[331392607,1720332640937,-304.110719,0.0002598,7]
[331392608,1720332640947,-304.110719,0.0002598,7]
[331392609,1720332640957,-154.92132218,0.0002598,2]
[331392610,1720332641085,-151.0,0.0002598,7]
[331392611,1720332641095,-151.0,0.0002598,7]
[331392612,1720332641106,-218.217376,0.0002598,7]
[331392613,1720332641116,-218.217376,0.0002598,7]
[331392614,1720332641126,-218.217376,0.0002598,7]
[331392615,1720332641136,-218.217376,0.0002598,7]
[331392616,1720332641146,-241.770505,0.0002598,7]
[331392617,1720332641155,-241.770505,0.0002598,7]
[331392618,1720332641165,-241.770505,0.0002598,7]
[331392619,1720332641175,-241.770505,0.0002598,7]
[331392620,1720332641185,-151.0,0.0002598,7]
[331392621,1720332641196,-151.0,0.0002598,7]
[331392622,1720332641206,-151.0,0.0002598,7]
[331392623,1720332641217,-151.0,0.0002598,7]
[331392624,1720332641227,-151.0,0.0002598,7]
[331392625,1720332641238,-196.824,0.0002598,7]
[331392626,1720332641247,-153.552436,0.0002598,7]
[331392627,1720332641258,-151.0,0.0002598,7]
[331392628,1720332641269,-151.0,0.0002598,7]
[331392629,1720332641278,-151.0,0.0002598,7]
[331392630,1720332641290,-151.0,0.0002598,7]
[331392631,1720332641304,-151.0,0.0002598,7]
[331392632,1720332641314,-151.0,0.0002598,7]
[331392633,1720332641323,-313.357042,0.0002598,7]
[331392634,1720332641332,-313.357042,0.0002598,7]
[331392635,1720332641342,-151.0,0.00025989,7]
[331392636,1720332641351,-257.146742,0.00025989,7]
[331392637,1720332641361,-151.0,0.00025989,7]
[331392638,1720332641370,-151.0,0.0002599,7]
[331392639,1720332641381,-304.110719,0.0002599,7]
[331392640,1720332641391,-304.110719,0.0002599,7]
[331392641,1720332641400,-153.588416,0.0002599,7]
[331392642,1720332641410,-257.146742,0.0002599,7]
[331392643,1720332641419,-151.0,0.0002599,7]
[331392644,1720332641428,-272.907309,0.0002599,7]
[331392645,1720332641437,-218.217376,0.0002599,7]
[331392646,1720332641447,-218.217376,0.0002599,7]